[Event "*** Titled Tuesday Blitz"]
[Site "Chess.com"]
[Date "2020.11.24"]
[Round "7"]
[White "vinniethepooh"]
[Black "Slovak_fighter2000"]
[Result "1-0"]
[WhiteElo "2618"]
[BlackElo "2465"]
[TimeControl "180+1"]
[EndTime "11:37:08 PST"]
[Termination "vinniethepooh won by resignation"]

1. d4 {[%clk 0:03:00.9]} 1... Nf6 {[%clk 0:02:59.3]} 2. c4 {[%clk 0:03:01.4]}
2... g6 {[%clk 0:02:58.3]} 3. Nc3 {[%clk 0:03:01.7]} 3... Bg7 {[%clk 0:02:58.5]}
4. e4 {[%clk 0:03:00.4]} 4... d6 {[%clk 0:02:58.9]} 5. Be2 {[%clk 0:03:01]} 5...
O-O {[%clk 0:02:58.8]} 6. Be3 {[%clk 0:03:01.5]} 6... c5 {[%clk 0:02:55.2]} 7.
dxc5 {[%clk 0:03:01]} 7... dxc5 {[%clk 0:02:52.5]} 8. Qxd8 {[%clk 0:02:58.2]}
8... Rxd8 {[%clk 0:02:53.4]} 9. e5 {[%clk 0:02:58.7]} 9... Nfd7 {[%clk
0:02:49.8]} 10. f4 {[%clk 0:02:57.9]} 10... Nc6 {[%clk 0:02:41]} 11. Nf3 {[%clk
0:02:54.4]} 11... b6 {[%clk 0:02:36.1]} 12. O-O {[%clk 0:02:32.4]} 12... Bb7
{[%clk 0:02:21.7]} 13. Rfd1 {[%clk 0:02:32.9]} 13... Nf8 {[%clk 0:01:48.7]} 14.
Nd5 {[%clk 0:02:09.3]} 14... e6 {[%clk 0:01:41.6]} 15. Nc7 {[%clk 0:02:08.2]}
15... Rxd1+ {[%clk 0:01:34.7]} 16. Rxd1 {[%clk 0:02:09.1]} 16... Rd8 {[%clk
0:01:34.6]} 17. Rxd8 {[%clk 0:02:08.7]} 17... Nxd8 {[%clk 0:01:35.5]} 18. Nb5
{[%clk 0:02:01.2]} 18... a6 {[%clk 0:01:30.9]} 19. Nd6 {[%clk 0:02:00.7]} 19...
Bc6 {[%clk 0:01:23.9]} 20. b4 {[%clk 0:01:43.1]} 20... Nd7 {[%clk 0:01:16.9]}
21. a3 {[%clk 0:01:29.1]} 21... Bf8 {[%clk 0:01:11.3]} 22. b5 {[%clk 0:00:42.1]}
22... axb5 {[%clk 0:01:08.2]} 23. cxb5 {[%clk 0:00:42.4]} 23... Bd5 {[%clk
0:01:04.7]} 24. Nc4 {[%clk 0:00:37.6]} 24... Nb7 {[%clk 0:00:55.4]} 25. Nfd2
{[%clk 0:00:37.7]} 25... Be7 {[%clk 0:00:51.4]} 26. a4 {[%clk 0:00:29.6]} 26...
Bd8 {[%clk 0:00:49.8]} 27. g3 {[%clk 0:00:25.1]} 27... h5 {[%clk 0:00:49.1]} 28.
h4 {[%clk 0:00:24.9]} 28... Bc7 {[%clk 0:00:48]} 29. Kf2 {[%clk 0:00:25]} 29...
Bd8 {[%clk 0:00:48.1]} 30. Bf3 {[%clk 0:00:24]} 30... Bc7 {[%clk 0:00:41.6]} 31.
Be4 {[%clk 0:00:24.1]} 31... Kf8 {[%clk 0:00:41]} 32. Ke2 {[%clk 0:00:22.1]}
32... Ke7 {[%clk 0:00:39]} 33. Kd3 {[%clk 0:00:22.6]} 33... Bd8 {[%clk
0:00:38.6]} 34. Nf3 {[%clk 0:00:23]} 34... Bc7 {[%clk 0:00:36.4]} 35. Ng1 {[%clk
0:00:23.2]} 35... Bd8 {[%clk 0:00:36.4]} 36. Ne2 {[%clk 0:00:23.7]} 36... Bxe4+
{[%clk 0:00:24.3]} 37. Kxe4 {[%clk 0:00:24.6]} 37... Bc7 {[%clk 0:00:24.2]} 38.
Ng1 {[%clk 0:00:24.3]} 38... Bd8 {[%clk 0:00:22.7]} 39. Nf3 {[%clk 0:00:24.8]}
39... Ke8 {[%clk 0:00:21.1]} 40. Nfd2 {[%clk 0:00:23.2]} 40... Bc7 {[%clk
0:00:20.6]} 41. Nb3 {[%clk 0:00:23.5]} 41... Kd8 {[%clk 0:00:19.3]} 42. Bd2
{[%clk 0:00:18.8]} 42... Kc8 {[%clk 0:00:18.9]} 43. Bc3 {[%clk 0:00:18.7]} 43...
Kd8 {[%clk 0:00:16.7]} 44. Nc1 {[%clk 0:00:18.8]} 44... Kc8 {[%clk 0:00:16.8]}
45. Nd3 {[%clk 0:00:17.5]} 45... Kd8 {[%clk 0:00:17.2]} 46. Kf3 {[%clk 0:00:18]}
46... Kc8 {[%clk 0:00:16.6]} 47. Nf2 {[%clk 0:00:18.6]} 47... Bd8 {[%clk
0:00:16.1]} 48. Ne4 {[%clk 0:00:18.3]} 48... Be7 {[%clk 0:00:15.7]} 49. Ke2
{[%clk 0:00:17.8]} 49... Kc7 {[%clk 0:00:15.2]} 50. Ke3 {[%clk 0:00:15.9]} 50...
Bf8 {[%clk 0:00:14.9]} 51. Kd3 {[%clk 0:00:15.7]} 51... Be7 {[%clk 0:00:14.7]}
52. Kc2 {[%clk 0:00:16.3]} 52... Kc8 {[%clk 0:00:14.3]} 53. Kb3 {[%clk
0:00:14.6]} 53... Kc7 {[%clk 0:00:14.4]} 54. Ka3 {[%clk 0:00:10.7]} 54... Kc8
{[%clk 0:00:14.3]} 55. Ka2 {[%clk 0:00:11.2]} 55... Kc7 {[%clk 0:00:13.9]} 56.
Kb2 {[%clk 0:00:11.8]} 56... Kc8 {[%clk 0:00:14.2]} 57. Kb3 {[%clk 0:00:11.3]}
57... Kc7 {[%clk 0:00:14.4]} 58. Kc2 {[%clk 0:00:11.8]} 58... Kc8 {[%clk
0:00:14.1]} 59. a5 {[%clk 0:00:09.5]} 59... bxa5 {[%clk 0:00:11.7]} 60. Nxa5
{[%clk 0:00:10.4]} 60... Nxa5 {[%clk 0:00:11.7]} 61. Bxa5 {[%clk 0:00:11.3]}
61... Kb7 {[%clk 0:00:09.6]} 62. Kc3 {[%clk 0:00:11.8]} 62... Nb6 {[%clk
0:00:04.8]} 63. Bxb6 {[%clk 0:00:11.5]} 63... Kxb6 {[%clk 0:00:05.7]} 64. Kc4
{[%clk 0:00:12.3]} 64... Kc7 {[%clk 0:00:02.9]} 65. Nxc5 {[%clk 0:00:12]} 65...
Kb6 {[%clk 0:00:02.8]} 66. Na4+ {[%clk 0:00:10.1]} 66... Kc7 {[%clk 0:00:02.8]}
67. Nc3 {[%clk 0:00:05]} 67... Ba3 {[%clk 0:00:02.9]} 68. Ne4 {[%clk 0:00:04.8]}
68... Bc1 {[%clk 0:00:03.2]} 69. Ng5 {[%clk 0:00:04.4]} 69... Be3 {[%clk
0:00:03.8]} 70. Nxf7 {[%clk 0:00:04.8]} 70... Bf2 {[%clk 0:00:04.3]} 71. Ng5
{[%clk 0:00:05.3]} 71... Bxg3 {[%clk 0:00:04.2]} 72. Nxe6+ {[%clk 0:00:05.9]}
72... Kd7 {[%clk 0:00:05]} 73. b6 {[%clk 0:00:05.8]} 73... Bxh4 {[%clk
0:00:04.6]} 74. b7 {[%clk 0:00:05.3]} 74... Kxe6 {[%clk 0:00:04.1]} 75. b8=Q
{[%clk 0:00:05.7]} 75... Kf5 {[%clk 0:00:05]} 76. Qd6 {[%clk 0:00:05.8]} 76...
Bg3 {[%clk 0:00:04.5]} 77. e6 {[%clk 0:00:06]} 77... Bxf4 {[%clk 0:00:04.3]} 78.
Qxf4+ {[%clk 0:00:06]} 78... Kxf4 {[%clk 0:00:04.3]} 79. e7 {[%clk 0:00:06.9]}
79... h4 {[%clk 0:00:05.2]} 80. e8=Q {[%clk 0:00:07.4]} 80... h3 {[%clk
0:00:06.1]} 81. Qxg6 {[%clk 0:00:07.6]} 81... Kf3 {[%clk 0:00:05.3]} 82. Qh5+
{[%clk 0:00:07.5]} 82... Kg3 {[%clk 0:00:05.1]} 83. Qg5+ {[%clk 0:00:07.9]}
83... Kf3 {[%clk 0:00:04.8]} 84. Qh4 {[%clk 0:00:07.9]} 84... Kg2 {[%clk
0:00:04.6]} 85. Qg4+ {[%clk 0:00:08.4]} 85... Kh2 {[%clk 0:00:04.9]} 86. Kd3
{[%clk 0:00:08.8]} 1-0

[Event "*** Titled Tuesday Blitz"]
[Site "Chess.com"]
[Date "2020.11.24"]
[Round "7"]
[White "sorrm8thatscheckm8"]
[Black "alexrustemov"]
[Result "1-0"]
[WhiteElo "2505"]
[BlackElo "2640"]
[TimeControl "180+1"]
[EndTime "11:38:26 PST"]
[Termination "sorrm8thatscheckm8 won by resignation"]

1. d4 {[%clk 0:03:00.9]} 1... g6 {[%clk 0:02:57.8]} 2. c4 {[%clk 0:03:01.4]}
2... Bg7 {[%clk 0:02:57.9]} 3. Nf3 {[%clk 0:03:02.3]} 3... c5 {[%clk 0:02:56.9]}
4. g3 {[%clk 0:03:00.2]} 4... cxd4 {[%clk 0:02:56.4]} 5. Nxd4 {[%clk 0:02:59.4]}
5... Nc6 {[%clk 0:02:56.8]} 6. e3 {[%clk 0:02:54]} 6... Nxd4 {[%clk 0:02:48.4]}
7. exd4 {[%clk 0:02:53.9]} 7... Qb6 {[%clk 0:02:48.6]} 8. Be3 {[%clk 0:02:51.6]}
8... Qxb2 {[%clk 0:02:47]} 9. Nd2 {[%clk 0:02:46.8]} 9... Qa3 {[%clk 0:02:40.2]}
10. Bg2 {[%clk 0:02:45]} 10... Nf6 {[%clk 0:02:38.4]} 11. O-O {[%clk 0:02:44.4]}
11... O-O {[%clk 0:02:37.2]} 12. Qb1 {[%clk 0:02:37.7]} 12... d5 {[%clk
0:02:34.5]} 13. cxd5 {[%clk 0:02:34.1]} 13... Qa6 {[%clk 0:02:19.9]} 14. Rc1
{[%clk 0:02:30.6]} 14... Rd8 {[%clk 0:02:13.3]} 15. Qb3 {[%clk 0:02:25.7]} 15...
Ne8 {[%clk 0:01:54.1]} 16. Nc4 {[%clk 0:02:14.4]} 16... Nd6 {[%clk 0:01:36.6]}
17. Ne5 {[%clk 0:02:11.1]} 17... Bf5 {[%clk 0:01:30.9]} 18. Rc7 {[%clk
0:02:05.6]} 18... Rac8 {[%clk 0:01:28.9]} 19. Rac1 {[%clk 0:01:59.5]} 19... Rxc7
{[%clk 0:01:28.8]} 20. Rxc7 {[%clk 0:01:59.1]} 20... Bf6 {[%clk 0:01:28.1]} 21.
h4 {[%clk 0:01:49.4]} 21... Qb6 {[%clk 0:01:03.7]} 22. Qxb6 {[%clk 0:01:47.4]}
22... axb6 {[%clk 0:01:03.8]} 23. g4 {[%clk 0:01:36.8]} 23... Bb1 {[%clk
0:00:46]} 24. g5 {[%clk 0:01:30]} 24... Bg7 {[%clk 0:00:46.3]} 25. a3 {[%clk
0:01:10.2]} 25... Bf8 {[%clk 0:00:44.1]} 26. Nc4 {[%clk 0:01:02.4]} 26... Nxc4
{[%clk 0:00:32.9]} 27. Rxc4 {[%clk 0:01:03.3]} 27... Ba2 {[%clk 0:00:31.1]} 28.
Rb4 {[%clk 0:01:01.2]} 28... Bxd5 {[%clk 0:00:29.6]} 29. Rxb6 {[%clk 0:01:00.3]}
29... e6 {[%clk 0:00:21.5]} 30. Bxd5 {[%clk 0:00:59.6]} 30... Rxd5 {[%clk
0:00:21.2]} 31. Rxb7 {[%clk 0:00:56.2]} 31... Bxa3 {[%clk 0:00:20]} 32. Rb8+
{[%clk 0:00:42]} 32... Kg7 {[%clk 0:00:19.7]} 33. Bf4 {[%clk 0:00:39.6]} 33...
Bd6 {[%clk 0:00:19.6]} 34. Bxd6 {[%clk 0:00:35.3]} 34... Rxd6 {[%clk 0:00:20.5]}
35. Rb4 {[%clk 0:00:35.2]} 35... Rc6 {[%clk 0:00:20.7]} 36. Kg2 {[%clk
0:00:35.1]} 36... Rc3 {[%clk 0:00:20.9]} 37. f3 {[%clk 0:00:33.5]} 37... Rd3
{[%clk 0:00:20]} 38. Kg3 {[%clk 0:00:33.2]} 38... h6 {[%clk 0:00:20.1]} 39. Kg4
{[%clk 0:00:30.3]} 39... Rd1 {[%clk 0:00:18.5]} 40. Kg3 {[%clk 0:00:26.6]} 40...
Rg1+ {[%clk 0:00:17.4]} 41. Kf4 {[%clk 0:00:25.6]} 41... h5 {[%clk 0:00:16.6]}
42. Rc4 {[%clk 0:00:18.7]} 42... Rh1 {[%clk 0:00:17.1]} 43. Kg3 {[%clk
0:00:18.9]} 43... Rd1 {[%clk 0:00:17.9]} 44. Rb4 {[%clk 0:00:18.7]} 44... Kf8
{[%clk 0:00:18.7]} 45. Rb8+ {[%clk 0:00:17.2]} 45... Ke7 {[%clk 0:00:18.8]} 46.
Rb7+ {[%clk 0:00:17.5]} 46... Kf8 {[%clk 0:00:19.5]} 47. Rb8+ {[%clk 0:00:17.7]}
47... Kg7 {[%clk 0:00:20.2]} 48. Rb4 {[%clk 0:00:16.8]} 48... Rh1 {[%clk
0:00:20.4]} 49. d5 {[%clk 0:00:14.4]} 49... exd5 {[%clk 0:00:14.6]} 50. Rd4
{[%clk 0:00:14.6]} 50... Kf8 {[%clk 0:00:14.9]} 51. Rxd5 {[%clk 0:00:14.5]}
51... Ke7 {[%clk 0:00:15.5]} 52. Re5+ {[%clk 0:00:15]} 52... Kd6 {[%clk
0:00:13.8]} 53. Ra5 {[%clk 0:00:15.5]} 53... Rg1+ {[%clk 0:00:14.3]} 54. Kh2
{[%clk 0:00:15.1]} 54... Rd1 {[%clk 0:00:14.4]} 55. Ra7 {[%clk 0:00:13.4]} 55...
Ke6 {[%clk 0:00:13.8]} 56. Ra6+ {[%clk 0:00:13.3]} 56... Rd6 {[%clk 0:00:13.9]}
57. Ra5 {[%clk 0:00:12.3]} 57... Rd5 {[%clk 0:00:14]} 58. Ra7 {[%clk 0:00:11.2]}
58... Rf5 {[%clk 0:00:14.1]} 59. Kg3 {[%clk 0:00:10.9]} 59... Ke5 {[%clk
0:00:14.2]} 60. Re7+ {[%clk 0:00:10.9]} 60... Kd4 {[%clk 0:00:14.5]} 61. Re8
{[%clk 0:00:11.2]} 61... Kd5 {[%clk 0:00:15]} 62. Re7 {[%clk 0:00:11.1]} 62...
Kd6 {[%clk 0:00:15.9]} 63. Re4 {[%clk 0:00:11.3]} 63... Kd7 {[%clk 0:00:16.7]}
64. Rd4+ {[%clk 0:00:10.7]} 64... Ke6 {[%clk 0:00:16.1]} 65. Re4+ {[%clk
0:00:11.1]} 65... Re5 {[%clk 0:00:16.5]} 66. Rf4 {[%clk 0:00:11]} 66... Re1
{[%clk 0:00:14.3]} 67. Rf6+ {[%clk 0:00:11]} 67... Ke7 {[%clk 0:00:14.7]} 68.
Ra6 {[%clk 0:00:11.1]} 68... Rg1+ {[%clk 0:00:15.2]} 69. Kh2 {[%clk 0:00:11]}
69... Rf1 {[%clk 0:00:15.2]} 70. Kg3 {[%clk 0:00:11.3]} 70... Rd1 {[%clk
0:00:15.6]} 71. Ra7+ {[%clk 0:00:10.3]} 71... Ke6 {[%clk 0:00:16.5]} 72. Ra6+
{[%clk 0:00:10.6]} 72... Rd6 {[%clk 0:00:17.4]} 73. Ra4 {[%clk 0:00:10.9]} 73...
f6 {[%clk 0:00:17.4]} 74. Re4+ {[%clk 0:00:10.7]} 74... Kf7 {[%clk 0:00:17.4]}
75. gxf6 {[%clk 0:00:11]} 75... Kxf6 {[%clk 0:00:18.3]} 76. Rf4+ {[%clk
0:00:11]} 76... Ke5 {[%clk 0:00:18.6]} 77. Re4+ {[%clk 0:00:11.4]} 77... Kf5
{[%clk 0:00:19]} 78. Rf4+ {[%clk 0:00:11.8]} 78... Ke6 {[%clk 0:00:18.6]} 79.
Re4+ {[%clk 0:00:12.7]} 79... Kf6 {[%clk 0:00:19.3]} 80. Rf4+ {[%clk 0:00:13.2]}
80... Kg7 {[%clk 0:00:20.2]} 81. Re4 {[%clk 0:00:13.7]} 81... Rf6 {[%clk
0:00:20.4]} 82. Re7+ {[%clk 0:00:14.2]} 82... Kh6 {[%clk 0:00:20]} 83. Re5
{[%clk 0:00:14.3]} 83... Rb6 {[%clk 0:00:20.1]} 84. Re4 {[%clk 0:00:14.1]} 84...
Rb1 {[%clk 0:00:19.7]} 85. Ra4 {[%clk 0:00:14.5]} 85... Rh1 {[%clk 0:00:19.6]}
86. Rb4 {[%clk 0:00:13.2]} 86... Rg1+ {[%clk 0:00:19.7]} 87. Kh2 {[%clk
0:00:12.8]} 87... Rf1 {[%clk 0:00:20]} 88. Kg3 {[%clk 0:00:13.1]} 88... Rg1+
{[%clk 0:00:19.6]} 89. Kh2 {[%clk 0:00:12.7]} 89... Rc1 {[%clk 0:00:20.5]} 90.
Kg3 {[%clk 0:00:13]} 90... Rc5 {[%clk 0:00:19.6]} 91. Re4 {[%clk 0:00:13.1]}
91... Rc7 {[%clk 0:00:19.4]} 92. Re6 {[%clk 0:00:13]} 92... Kg7 {[%clk
0:00:19.7]} 93. Re4 {[%clk 0:00:13.1]} 93... Rc5 {[%clk 0:00:19.4]} 94. Re6
{[%clk 0:00:13.1]} 94... Kf7 {[%clk 0:00:19.4]} 95. Ra6 {[%clk 0:00:12.6]} 95...
Rc1 {[%clk 0:00:19.7]} 96. Ra7+ {[%clk 0:00:13]} 96... Kf6 {[%clk 0:00:20.2]}
97. Ra6+ {[%clk 0:00:13.1]} 97... Kg7 {[%clk 0:00:21.1]} 98. Ra5 {[%clk
0:00:13.2]} 98... Kh6 {[%clk 0:00:21.7]} 99. Ra6 {[%clk 0:00:13.2]} 99... Rg1+
{[%clk 0:00:21.6]} 100. Kh2 {[%clk 0:00:13]} 100... Rb1 {[%clk 0:00:21.6]} 101.
Kg3 {[%clk 0:00:13.5]} 101... Rb4 {[%clk 0:00:21.7]} 102. Rc6 {[%clk 0:00:12.7]}
102... Rb5 {[%clk 0:00:21.7]} 103. Rc4 {[%clk 0:00:12.7]} 103... Rd5 {[%clk
0:00:20.6]} 104. Rf4 {[%clk 0:00:13]} 104... Kg7 {[%clk 0:00:20.5]} 105. Re4
{[%clk 0:00:13.3]} 105... Kf6 {[%clk 0:00:20.7]} 106. Rb4 {[%clk 0:00:13.5]}
106... g5 {[%clk 0:00:19.6]} 107. Rb6+ {[%clk 0:00:13.2]} 107... Kf5 {[%clk
0:00:19.8]} 108. hxg5 {[%clk 0:00:12.5]} 108... Kxg5 {[%clk 0:00:20.7]} 109. Rb4
{[%clk 0:00:12.6]} 109... Rf5 {[%clk 0:00:20.1]} 110. f4+ {[%clk 0:00:11.9]}
110... Kg6 {[%clk 0:00:20]} 111. Rb6+ {[%clk 0:00:12.1]} 111... Kg7 {[%clk
0:00:20.1]} 112. Kh4 {[%clk 0:00:12.4]} 112... Ra5 {[%clk 0:00:19.6]} 113. Rd6
{[%clk 0:00:10.1]} 113... Kh7 {[%clk 0:00:19.4]} 114. Re6 {[%clk 0:00:10]}
114... Rf5 {[%clk 0:00:19.4]} 115. Re5 {[%clk 0:00:09.5]} 115... Kg7 {[%clk
0:00:20]} 116. Rxf5 {[%clk 0:00:09.4]} 1-0

[Event "*** Titled Tuesday Blitz"]
[Site "Chess.com"]
[Date "2020.11.24"]
[Round "8"]
[White "Chopper1905"]
[Black "sjam6687"]
[Result "1-0"]
[WhiteElo "2966"]
[BlackElo "2801"]
[TimeControl "180+1"]
[EndTime "11:39:53 PST"]
[Termination "Chopper1905 won by resignation"]

1. e4 {[%clk 0:03:00.9]} 1... e5 {[%clk 0:02:59.7]} 2. Nf3 {[%clk 0:03:00.5]}
2... Nf6 {[%clk 0:02:57.3]} 3. Nxe5 {[%clk 0:03:00]} 3... d6 {[%clk 0:02:57.5]}
4. Nf3 {[%clk 0:03:00.6]} 4... Nxe4 {[%clk 0:02:57.5]} 5. Nc3 {[%clk 0:03:01.2]}
5... Nxc3 {[%clk 0:02:56]} 6. dxc3 {[%clk 0:03:02.1]} 6... Be7 {[%clk
0:02:53.8]} 7. Be3 {[%clk 0:03:02.2]} 7... O-O {[%clk 0:02:48.3]} 8. Bd3 {[%clk
0:02:57.5]} 8... c5 {[%clk 0:02:46.6]} 9. Qe2 {[%clk 0:02:54.6]} 9... Nc6 {[%clk
0:02:47]} 10. O-O-O {[%clk 0:02:54.5]} 10... Qb6 {[%clk 0:02:43.9]} 11. h4
{[%clk 0:02:50.4]} 11... h6 {[%clk 0:02:39.6]} 1-0

[Event "*** Titled Tuesday Blitz"]
[Site "Chess.com"]
[Date "2020.11.24"]
[Round "8"]
[White "HrvojeZagreb"]
[Black "InitiatingASC"]
[Result "1-0"]
[WhiteElo "2287"]
[BlackElo "2443"]
[TimeControl "180+1"]
[EndTime "11:40:10 PST"]
[Termination "HrvojeZagreb won by resignation"]

1. d4 {[%clk 0:03:00.9]} 1... Nf6 {[%clk 0:02:59.1]} 2. Bf4 {[%clk 0:03:00.3]}
2... g6 {[%clk 0:02:57.8]} 3. Nc3 {[%clk 0:02:59.7]} 3... Bg7 {[%clk 0:02:58.5]}
4. e4 {[%clk 0:02:59.7]} 4... d6 {[%clk 0:02:58.9]} 5. Qd2 {[%clk 0:02:59.8]}
5... Nbd7 {[%clk 0:02:57.4]} 6. O-O-O {[%clk 0:02:59.2]} 6... a6 {[%clk
0:02:56.7]} 7. Bh6 {[%clk 0:02:58.4]} 7... O-O {[%clk 0:02:53.2]} 8. h4 {[%clk
0:02:57.4]} 8... Ne8 {[%clk 0:02:53.1]} 9. h5 {[%clk 0:02:55.5]} 9... f5 {[%clk
0:02:44.4]} 10. Bc4+ {[%clk 0:02:49.5]} 10... Rf7 {[%clk 0:02:41.4]} 11. hxg6
{[%clk 0:02:46.4]} 11... hxg6 {[%clk 0:02:41.3]} 12. Bxg7 {[%clk 0:02:45.9]}
12... Nxg7 {[%clk 0:02:37.7]} 13. Qh6 {[%clk 0:02:43.7]} 1-0

[Event "*** Titled Tuesday Blitz"]
[Site "Chess.com"]
[Date "2020.11.24"]
[Round "8"]
[White "Margency"]
[Black "dretch"]
[Result "0-1"]
[WhiteElo "2675"]
[BlackElo "2807"]
[TimeControl "180+1"]
[EndTime "11:40:34 PST"]
[Termination "dretch won by resignation"]

1. e4 {[%clk 0:03:00.9]} 1... e6 {[%clk 0:02:59.9]} 2. d4 {[%clk 0:03:00.8]}
2... d5 {[%clk 0:03:00.5]} 3. Nc3 {[%clk 0:03:01.5]} 3... Nf6 {[%clk 0:03:00.3]}
4. Bg5 {[%clk 0:03:01.3]} 4... dxe4 {[%clk 0:02:59.4]} 5. Nxe4 {[%clk
0:03:01.6]} 5... Be7 {[%clk 0:02:59.9]} 6. Bxf6 {[%clk 0:03:02.1]} 6... Bxf6
{[%clk 0:03:00.8]} 7. Nf3 {[%clk 0:03:02.2]} 7... Nd7 {[%clk 0:03:01.7]} 8. Qd2
{[%clk 0:03:02.3]} 8... O-O {[%clk 0:02:59.2]} 9. O-O-O {[%clk 0:03:02.4]} 9...
Be7 {[%clk 0:02:59.6]} 10. h4 {[%clk 0:03:02.5]} 10... b6 {[%clk 0:02:59]} 11.
Bd3 {[%clk 0:03:02.2]} 11... Bb7 {[%clk 0:02:59.3]} 12. Nfg5 {[%clk 0:03:02.5]}
12... h6 {[%clk 0:02:57.9]} 13. f4 {[%clk 0:03:01.2]} 13... c5 {[%clk
0:02:52.5]} 14. dxc5 {[%clk 0:02:55.9]} 14... Qc7 {[%clk 0:02:52.7]} 15. Kb1
{[%clk 0:02:47.7]} 15... Rad8 {[%clk 0:02:49.3]} 16. cxb6 {[%clk 0:02:22.3]}
16... Nxb6 {[%clk 0:02:46.1]} 17. Nf3 {[%clk 0:02:14.2]} 17... Bxe4 {[%clk
0:02:44.9]} 0-1

[Event "*** Titled Tuesday Blitz"]
[Site "Chess.com"]
[Date "2020.11.24"]
[Round "8"]
[White "hawes33"]
[Black "Kretov_Evgenij"]
[Result "0-1"]
[WhiteElo "2242"]
[BlackElo "2456"]
[TimeControl "180+1"]
[EndTime "11:40:59 PST"]
[Termination "Kretov_Evgenij won by resignation"]

1. e4 {[%clk 0:02:59.9]} 1... c5 {[%clk 0:03:00.1]} 2. Nc3 {[%clk 0:02:59.6]}
2... Nc6 {[%clk 0:03:00.4]} 3. g3 {[%clk 0:02:59.5]} 3... g6 {[%clk 0:03:00.8]}
4. Bg2 {[%clk 0:03:00.1]} 4... Bg7 {[%clk 0:03:00.7]} 5. d3 {[%clk 0:03:00.7]}
5... d6 {[%clk 0:03:01]} 6. Be3 {[%clk 0:03:01.3]} 6... e5 {[%clk 0:03:01.2]} 7.
Qd2 {[%clk 0:03:01.6]} 7... Nge7 {[%clk 0:03:01]} 8. Bh6 {[%clk 0:03:01.4]} 8...
O-O {[%clk 0:03:01.2]} 9. h4 {[%clk 0:03:01.2]} 9... f6 {[%clk 0:03:01.5]} 10.
Bxg7 {[%clk 0:03:00.7]} 10... Kxg7 {[%clk 0:03:01.6]} 11. h5 {[%clk 0:03:01.6]}
11... g5 {[%clk 0:03:02]} 12. h6+ {[%clk 0:03:02.2]} 12... Kh8 {[%clk
0:03:02.2]} 13. f4 {[%clk 0:03:03.1]} 13... Ng6 {[%clk 0:02:56.2]} 14. Nge2
{[%clk 0:02:52.1]} 14... Nd4 {[%clk 0:02:52.3]} 15. O-O-O {[%clk 0:02:51.5]}
15... Rb8 {[%clk 0:02:50.7]} 16. Nd5 {[%clk 0:02:51.5]} 16... Be6 {[%clk
0:02:49.9]} 17. c4 {[%clk 0:02:51.4]} 17... Bxd5 {[%clk 0:02:45]} 18. exd5
{[%clk 0:02:51.4]} 18... b5 {[%clk 0:02:43.8]} 19. b3 {[%clk 0:02:51]} 19... a5
{[%clk 0:02:42.4]} 20. Nxd4 {[%clk 0:02:47.8]} 20... cxd4 {[%clk 0:02:41.5]} 21.
Be4 {[%clk 0:02:48]} 21... a4 {[%clk 0:02:34]} 22. Bxg6 {[%clk 0:02:47.6]} 22...
hxg6 {[%clk 0:02:33.8]} 23. fxg5 {[%clk 0:02:42.3]} 23... axb3 {[%clk 0:02:34]}
24. axb3 {[%clk 0:02:41.3]} 24... bxc4 {[%clk 0:02:32]} 25. dxc4 {[%clk
0:02:38.1]} 25... Rxb3 {[%clk 0:02:31.2]} 26. Qc2 {[%clk 0:02:31.8]} 26... Rc3
{[%clk 0:02:29.7]} 0-1

[Event "*** Titled Tuesday Blitz"]
[Site "Chess.com"]
[Date "2020.11.24"]
[Round "8"]
[White "mikheeva86"]
[Black "HouseOfDurin"]
[Result "1-0"]
[WhiteElo "1982"]
[BlackElo "2113"]
[TimeControl "180+1"]
[EndTime "11:41:50 PST"]
[Termination "mikheeva86 won by checkmate"]

1. e4 {[%clk 0:03:00.9]} 1... c5 {[%clk 0:03:00]} 2. Nc3 {[%clk 0:02:59]} 2...
Nc6 {[%clk 0:03:00.4]} 3. g3 {[%clk 0:02:59.6]} 3... e5 {[%clk 0:03:00.9]} 4.
Bg2 {[%clk 0:02:59.8]} 4... g6 {[%clk 0:03:00.6]} 5. d3 {[%clk 0:03:00]} 5...
Bg7 {[%clk 0:03:01.1]} 6. Be3 {[%clk 0:03:00.1]} 6... d6 {[%clk 0:03:01]} 7. Qd2
{[%clk 0:02:59.9]} 7... h6 {[%clk 0:03:01.1]} 8. Nge2 {[%clk 0:02:52.3]} 8...
Nge7 {[%clk 0:03:01.4]} 9. O-O {[%clk 0:02:48.9]} 9... Be6 {[%clk 0:02:59.6]}
10. f4 {[%clk 0:02:45.8]} 10... b6 {[%clk 0:02:59.5]} 11. f5 {[%clk 0:02:41.2]}
11... gxf5 {[%clk 0:02:13.6]} 12. exf5 {[%clk 0:02:39.4]} 12... Bd7 {[%clk
0:02:13.7]} 13. f6 {[%clk 0:02:36.7]} 13... Bxf6 {[%clk 0:02:13.6]} 14. Rxf6
{[%clk 0:02:34.3]} 14... Be6 {[%clk 0:01:50.6]} 15. Rxh6 {[%clk 0:02:25.8]}
15... Rxh6 {[%clk 0:01:48.3]} 16. Bxh6 {[%clk 0:02:25.4]} 16... Qd7 {[%clk
0:01:47.3]} 17. Bg5 {[%clk 0:02:22.8]} 17... d5 {[%clk 0:01:41.7]} 18. Bxe7
{[%clk 0:02:17.3]} 18... Kxe7 {[%clk 0:01:40]} 19. Qg5+ {[%clk 0:02:15.1]} 19...
Kd6 {[%clk 0:01:34.6]} 20. Nb5# {[%clk 0:02:12.2]} 1-0